bitfinex/quotes_ETHUSD_20240819
["timestamp","ask_amount","ask_price","bid_price","bid_amount"]
[1724068654396,6.11e-05,2588.7,2588.6,9.96873122]
[1724068654940,6.11e-05,2588.7,2588.6,9.16335498]
[1724068655421,6.11e-05,2588.7,2588.6,9.96797257]
[1724068656071,0.1239111,2590.0,2588.7,2.3828]
[1724068656319,0.22303501,2589.9,2589.2,4.847]
[1724068656521,0.22303501,2589.9,2589.3,3.55]
[1724068656681,2.3719,2589.9,2589.3,3.55]
[1724068656884,0.22303501,2589.8,2589.3,3.55]
[1724068657828,0.22303501,2589.8,2589.3,3.0]
[1724068658032,0.49491962,2589.8,2589.3,3.0]
[1724068658587,0.22303501,2589.8,2589.3,3.0]
[1724068659328,0.22303501,2589.8,2589.5,4.847]
[1724068659540,0.1239111,2590.0,2589.6,3.0]
[1724068659692,0.2242441,2589.7,2589.6,3.0]
[1724068659898,0.1239111,2590.0,2589.6,3.0]
[1724068660099,0.22423855,2589.7,2589.4,0.55]
[1724068660562,0.1239111,2590.0,2589.4,0.55]
[1724068660705,0.2242829,2589.6,2589.4,0.55]
[1724068660903,2.4091,2589.6,2589.3,3.0]
[1724068661107,0.2242829,2589.5,2589.3,3.0]
[1724068661567,0.1239111,2590.0,2589.4,2.3685]
[1724068661859,0.1239111,2590.0,2589.7,4.847]
[1724068662164,0.1239111,2590.0,2589.8,3.07721611]
[1724068662312,0.1239111,2590.0,2589.9,0.55]
[1724068663206,0.1239111,2590.0,2589.9,2.9866]
[1724068663610,0.1239111,2590.0,2589.9,5.9866]
[1724068663771,0.1239111,2590.0,2589.9,3.55]
[1724068663935,0.1239111,2590.0,2589.9,0.55]
[1724068664617,0.1239111,2590.0,2589.8,3.0]
[1724068664822,2.319,2589.9,2589.8,3.0]
[1724068665021,2.319,2589.9,2589.5,3.0]
[1724068665420,0.1239111,2590.0,2589.5,3.0]
[1724068665615,0.1239111,2590.0,2589.7,4.847]
[1724068665820,0.1239111,2590.0,2589.8,3.0]
[1724068666367,0.1239111,2590.0,2589.9,0.55]
[1724068666734,0.1239111,2590.0,2589.8,3.0]
[1724068667068,0.1239111,2590.0,2589.7,4.847]
[1724068667276,0.1239111,2590.0,2589.8,3.55]
[1724068668045,2.4033,2589.9,2589.8,3.0]
[1724068668346,2.4033,2589.9,2589.4,4.847]
[1724068668547,2.4033,2589.9,2589.5,3.0]
[1724068669656,0.1239111,2590.0,2589.7,4.847]
[1724068669863,0.1239111,2590.0,2589.8,3.0]
[1724068670258,0.2226148,2589.9,2589.8,3.0]
[1724068670869,0.2226148,2589.9,2589.8,5.8938]
[1724068671061,0.2226148,2589.9,2589.8,3.55]
[1724068674801,0.2226148,2589.9,2589.8,6.0367]
[1724068676208,0.1239111,2590.0,2589.8,6.0367]
[1724068676504,0.1239111,2590.0,2589.9,0.55]
[1724068677463,0.1239111,2590.0,2589.9,2.9277]
[1724068677663,0.00791203,2590.0,2589.9,5.9277]
[1724068677903,3.85855,2591.7,2590.1,0.3878]
[1724068678055,2.3404,2591.6,2590.7,4.847]
[1724068678261,0.2226148,2591.6,2591.4,4.847]
[1724068678459,0.2226148,2591.6,2591.5,3.0]
[1724068678655,2.3404,2591.7,2591.5,3.0]
[1724068678900,2.3404,2591.7,2591.3,3.0]
[1724068679111,6.19925,2591.5,2591.0,3.0]
[1724068679272,6.19925,2591.5,2590.6,4.847]
[1724068679273,6.19925,2591.5,2590.7,3.0]
[1724068679657,2.2673,2591.4,2590.7,3.0]
[1724068679861,4.471695,2591.3,2590.7,3.0]
[1724068680063,6.12667,2591.1,2590.7,3.0]
[1724068680264,0.2226148,2591.0,2590.4,3.0]
[1724068680965,0.2226148,2591.0,2590.4,3.57837192]
[1724068682196,0.2226148,2591.0,2590.4,3.0]
[1724068682602,0.2226148,2591.0,2590.4,4.847]
[1724068682804,0.2226148,2591.0,2590.5,3.0]
[1724068683119,0.2226148,2591.0,2590.5,3.55]
[1724068684290,0.2226148,2591.0,2590.7,4.847]
[1724068684532,3.85791,2592.1,2590.9,2.3501]
[1724068684849,3.85791,2592.1,2591.2,4.847]
[1724068684850,6.18613,2592.0,2591.2,4.847]
[1724068685002,6.18613,2592.0,2591.3,3.0]
[1724068685360,2.3116,2591.9,2591.3,3.0]
[1724068685638,2.3116,2591.9,2590.9,4.847]
[1724068685639,2.3116,2591.9,2591.0,3.0]
[1724068685788,2.9671541,2591.9,2591.1,0.55]
[1724068686220,2.9671541,2591.9,2591.2,4.847]
[1724068686535,0.22276219,2591.8,2591.3,3.0]
[1724068687391,4.08117219,2591.8,2591.0,3.0]
[1724068687599,4.33460841,2591.8,2591.0,3.0]
[1724068687847,4.33460841,2591.8,2590.2,10.94272255]
[1724068687848,3.859,2591.4,2590.2,10.94272255]
[1724068688139,3.859,2591.4,2590.4,4.847]
[1724068688338,2.4801,2591.5,2590.4,4.847]
[1724068688339,0.22276219,2591.3,2590.4,4.847]
[1724068688490,4.08184219,2591.3,2590.4,4.847]
[1724068689041,4.08184219,2591.3,2590.5,5.4443]
[1724068689042,0.22276219,2591.3,2590.5,5.4443]
[1724068689542,4.074,2592.1,2590.5,5.4443]
[1724068689543,0.22276219,2591.2,2591.0,4.847]
[1724068689745,2.3638,2591.7,2591.1,3.0]
[1724068689954,3.85751,2592.4,2591.2,2.3421]
[1724068690153,6.3331,2592.3,2591.3,4.847]
[1724068690359,3.85791,2592.1,2591.4,3.0]
[1724068690541,0.63331,2592.2,2591.2,2.3421]
[1724068690854,6.33316,2592.3,2591.3,0.55]
[1724068691173,10.19085,2592.3,2591.3,3.55]
[1724068691465,1.24193576,2592.2,2591.3,3.55]
[1724068692658,5.09976576,2592.2,2591.3,3.55]
[1724068693017,0.22285076,2592.2,2591.7,4.847]
[1724068693326,0.22285076,2592.2,2591.8,3.55]
[1724068693857,0.1239111,2592.5,2591.9,0.07715277]
[1724068694058,0.1239111,2592.5,2591.8,3.55]
[1724068694059,0.22285076,2592.1,2592.0,37.95404761]
[1724068694276,0.1239111,2592.5,2592.1,3.0]
[1724068694436,0.1239111,2592.5,2592.2,2.99673215]
[1724068694763,0.1239111,2592.5,2592.4,4.847]
[1724068694989,0.1239111,2592.5,2592.4,7.90232156]
[1724068695181,0.1239111,2592.5,2592.4,10.90232156]
[1724068695348,2.4661,2594.6,2593.4,7.2212]
[1724068695556,2.4661,2594.6,2593.5,3.55]
[1724068695749,2.4661,2594.6,2593.7,4.847]
[1724068695750,0.22285076,2594.5,2593.7,4.847]
[1724068696068,0.22285076,2594.5,2593.8,3.0]
[1724068696232,6.08807,2594.4,2593.8,3.0]
[1724068696418,0.63055184,2594.5,2593.5,2.2899]
[1724068696419,0.22285076,2594.5,2593.5,2.2899]
[1724068696658,0.1239111,2595.1,2593.6,35.30608431]
[1724068696861,0.22285076,2594.4,2593.7,0.55]
[1724068697063,3.9773411,2595.1,2593.8,0.07708626]
[1724068697372,0.22603198,2595.0,2593.9,7.04508235]
[1724068697529,0.22603198,2595.0,2594.0,40.4587]
[1724068697865,0.1239111,2595.1,2594.2,2.4587]
[1724068698069,0.1239111,2595.1,2594.3,0.55]
[1724068698220,0.1239111,2595.1,2594.3,3.55]
[1724068698658,3.9773311,2595.1,2594.3,3.55]
[1724068698843,0.39773311,2595.0,2594.3,38.55]
[1724068699051,0.22673333,2595.0,2594.3,38.55]
[1724068699371,0.1239111,2595.1,2594.3,38.55]
[1724068699821,0.22678853,2595.0,2594.4,0.07706773]
[1724068700026,0.1239111,2595.1,2594.5,0.55]
[1724068700218,0.1239111,2595.1,2594.5,0.62706087]
[1724068700461,0.1239111,2595.1,2594.6,35.0]
[1724068700638,0.1239111,2595.1,2594.7,3.0]
[1724068700840,2.4046,2596.7,2595.1,2.3033]
[1724068701041,2.4046,2596.7,2595.8,6.418]
[1724068701298,0.21927168,2596.6,2595.9,3.0]
[1724068701421,3.85197,2596.1,2595.9,3.0]
[1724068701622,3.85197,2596.1,2595.4,3.0]
[1724068701918,0.21957516,2596.0,2595.4,3.0]
[1724068702120,0.21957516,2596.0,2594.9,6.418]
[1724068702121,3.85238,2595.8,2595.0,3.0]
[1724068702343,3.85238,2595.8,2595.1,0.55]
[1724068702344,4.07342486,2595.7,2595.1,0.55]
[1724068702571,0.60613286,2595.7,2595.1,0.55]
[1724068702768,4.45866286,2595.7,2595.0,3.0]
[1724068703065,3.85293,2595.5,2595.0,3.0]
[1724068703370,0.22088934,2595.4,2595.0,3.0]
[1724068703578,2.4046,2596.2,2595.0,3.0]
[1724068703737,0.22103828,2595.3,2595.0,3.0]
[1724068703935,3.85257,2595.7,2594.6,3.0]
[1724068704140,0.22085073,2595.2,2594.6,3.0]
[1724068704466,2.4046,2596.2,2594.6,3.0]
[1724068704467,3.85282,2595.5,2594.6,3.0]
[1724068704651,3.85253,2595.7,2594.6,3.0]
[1724068704840,0.22083969,2595.4,2594.9,6.418]
[1724068705041,0.220779,2595.6,2595.0,3.55]
[1724068705271,3.85223,2595.9,2595.0,3.55]
[1724068705477,0.22076797,2595.5,2595.0,3.55]
[1724068705776,3.85193,2596.1,2595.0,3.55]
[1724068706083,0.22076797,2595.4,2595.3,6.418]
[1724068706223,3.85203,2596.1,2595.4,3.55]
[1724068706427,3.85267,2595.6,2595.4,3.0]
[1724068706628,3.85302,2595.4,2594.5,6.418]
[1724068706884,4.623539,2595.4,2594.5,6.418]
[1724068707036,0.22086728,2595.3,2594.5,6.418]
[1724068707226,3.85339,2595.2,2594.5,6.418]
[1724068707439,3.85304,2595.4,2594.5,6.418]
[1724068707671,0.22085073,2595.1,2594.5,6.418]
[1724068707974,0.385304,2595.3,2594.5,6.418]
[1724068708476,4.074049,2595.2,2594.5,6.418]
[1724068708803,0.220779,2595.2,2594.5,6.418]
[1724068709074,0.220779,2595.2,2594.6,3.0]
[1724068709280,0.385304,2595.3,2594.6,3.0]
[1724068709445,3.85297,2595.4,2594.6,3.0]
[1724068709648,0.220779,2595.2,2594.6,3.0]
[1724068709838,3.85273,2595.6,2594.6,3.0]
[1724068710040,0.385273,2595.5,2594.6,3.0]
[1724068710285,0.606052,2595.5,2594.6,3.0]
[1724068710573,0.606052,2595.5,2594.7,0.55]
[1724068710574,0.220779,2595.5,2594.7,0.55]
[1724068710872,3.85241,2595.8,2594.7,0.55]
[1724068710873,7.70491,2595.8,2594.7,0.55]
[1724068711074,0.220779,2595.4,2594.7,0.55]
[1724068711260,0.770491,2595.7,2594.7,0.55]
[1724068711432,0.220779,2595.3,2594.6,3.0]
[1724068711628,3.85265,2595.7,2594.7,0.55]
[1724068711834,0.220779,2595.2,2594.7,0.55]
[1724068712073,0.38524,2595.7,2594.8,2.4025]
[1724068712254,0.38524,2595.7,2594.8,5.4025]
[1724068712456,0.644543,2595.6,2594.8,5.4025]
[1724068713201,0.644543,2595.6,2594.8,3.0]
[1724068713414,0.644543,2595.6,2594.4,2.4025]
[1724068713549,3.85328,2595.2,2594.1,8.8205]
[1724068713757,3.8536,2595.0,2594.1,8.8205]
[1724068713989,6.3901183,2595.5,2593.8,2.3183]
[1724068713990,3.854,2594.8,2593.8,2.3183]
[1724068714300,0.3854,2594.7,2593.8,2.3183]
[1724068714505,6.4793383,2594.9,2593.8,2.3183]
[1724068714506,6.25878,2594.9,2593.8,2.3183]
[1724068714705,3.85318,2595.3,2593.8,2.3183]
[1724068714706,0.2205583,2594.6,2593.8,2.3183]
[1724068715002,7.70692,2595.1,2593.8,2.3183]
[1724068715166,3.8538,2594.9,2593.8,2.3183]
[1724068715368,3.85409,2594.7,2593.8,2.3183]
[1724068715799,2.62520509,2594.8,2593.7,48.808]
[1724068715800,3.85455,2594.4,2593.7,7.39]
[1724068715957,0.770888,2594.3,2593.7,7.39]
[1724068716154,4.07479468,2594.3,2593.7,7.39]
[1724068716354,0.22009468,2594.3,2593.7,7.39]
[1724068716601,2.405,2594.8,2593.7,7.39]
[1724068716772,4.07490259,2594.2,2593.7,7.39]
[1724068716958,4.26242026,2594.1,2593.3,13.808]
[1724068717154,4.48238794,2594.1,2593.3,13.808]
[1724068717401,4.26242026,2594.1,2593.3,13.808]
[1724068717602,4.66685503,2594.0,2593.3,7.39]
[1724068717787,2.81249026,2594.1,2593.3,7.39]
[1724068717788,3.85546,2593.8,2593.3,7.39]
[1724068717995,3.85545,2593.8,2593.3,7.39]
[1724068718201,0.385545,2593.7,2593.3,7.39]
[1724068718362,0.60533043,2593.7,2593.3,7.2401]
[1724068718561,4.46092043,2593.7,2592.7,7.2401]
[1724068718761,0.21978543,2593.7,2592.9,6.418]
[1724068718965,0.40749026,2594.1,2592.9,6.418]
[1724068719215,0.21978543,2593.6,2592.9,6.418]
[1724068719418,3.85564,2593.6,2592.5,6.418]
[1724068719563,0.21960313,2593.5,2592.5,6.418]
[1724068719769,0.62713144,2593.5,2592.5,6.418]
[1724068720097,0.21960313,2593.5,2593.1,8.67]
[1724068720443,2.4475,2594.3,2593.2,0.07711112]
[1724068720587,3.85475,2594.2,2593.1,8.67]
[1724068720792,4.30333851,2594.2,2593.1,8.67]
[1724068721045,4.30340851,2594.2,2593.2,3.0]
[1724068721188,3.85505,2594.0,2593.1,2.252]
[1724068721505,3.85505,2594.0,2592.8,3.0]
[1724068721506,3.85535,2593.8,2592.8,3.0]
[1724068721708,4.240725,2593.9,2592.8,3.0]
[1724068721923,0.385505,2593.9,2592.8,3.0]
[1724068722103,0.8095725,2593.8,2592.8,3.0]
[1724068722306,1.01346877,2593.8,2592.8,3.0]
[1724068722524,0.20389627,2593.8,2592.8,3.0]
[1724068722705,3.85529,2593.9,2592.8,3.0]
[1724068722906,4.05933627,2593.8,2592.8,3.0]
[1724068723128,6.32031,2593.7,2592.8,3.0]
[1724068723292,3.85566,2593.6,2592.8,3.0]
[1724068723487,3.85566,2593.6,2592.7,2.4872]
[1724068723488,4.05952294,2593.6,2592.7,2.4872]
[1724068723724,0.632046,2593.5,2592.7,2.4872]
[1724068723938,0.20382407,2593.4,2592.7,2.4872]
[1724068724508,2.4648,2593.7,2592.7,2.4872]
[1724068724509,3.85513,2594.0,2592.7,8.9052]
[1724068724707,2.4021,2594.1,2592.7,8.9052]
[1724068724708,3.8556,2593.7,2592.7,8.9052]
[1724068724907,3.85565,2593.6,2592.7,2.4872]
[1724068725148,2.4021,2593.5,2592.4,5.4641]
[1724068725314,0.58930575,2593.5,2592.4,5.4641]
[1724068725496,0.20374075,2593.5,2592.4,5.4641]
[1724068725696,6.32196,2593.8,2592.4,6.00225131]
[1724068725901,0.20372408,2593.7,2592.4,6.00225131]
[1724068726144,0.85629249,2593.7,2592.4,6.00225131]
[1724068726346,3.85564,2593.6,2592.4,6.00225131]
[1724068726502,4.05934186,2593.6,2592.4,6.00225131]
[1724068726901,3.8558,2593.5,2592.4,6.00225131]
[1724068727149,0.20367408,2593.4,2592.4,6.00225131]
[1724068727354,0.99518549,2593.4,2592.4,6.00225131]
[1724068727515,4.85113549,2593.4,2592.4,6.00225131]
[1724068727717,3.85623,2593.2,2592.4,2.4641]
[1724068728032,6.13502,2593.3,2592.4,2.4641]
[1724068728235,0.20365742,2593.1,2592.2,7.2401]
[1724068728534,3.8565,2593.1,2592.2,7.2401]
[1724068728739,3.85664,2593.0,2592.2,7.2401]
[1724068728958,3.85677,2592.9,2592.2,7.2401]
[1724068729124,3.85695,2592.8,2592.2,7.2401]
[1724068729329,3.8566,2593.0,2592.2,7.2401]
[1724068729853,0.20350184,2592.9,2592.2,7.2401]
[1724068730261,3.85632,2593.2,2592.2,7.2401]
[1724068730750,0.2025071,2593.1,2592.3,3.0]
[1724068730960,0.8160191,2593.1,2592.3,3.0]
[1724068731422,0.2025071,2593.1,2592.4,2.4442]
[1724068731622,2.2788,2593.3,2592.4,2.4442]
[1724068731819,0.20252378,2593.0,2592.4,2.4442]
[1724068732033,2.2788,2593.3,2592.4,2.4442]
[1724068732243,0.20255157,2592.9,2592.4,2.4442]
[1724068732436,0.22788,2593.2,2592.4,2.4442]
[1724068732607,0.20255157,2592.8,2592.4,2.4442]
[1724068732938,0.22788,2593.2,2592.4,2.4442]
[1724068733334,0.20255713,2593.1,2592.4,2.4442]
[1724068733503,0.20255713,2593.1,2592.5,0.07713641]
[1724068733712,0.20255713,2593.1,2592.5,3.0]
[1724068733906,6.19267,2594.1,2592.7,8.8548]
[1724068734141,6.19267,2594.1,2592.8,10.31722205]
[1724068734348,1.348267,2594.0,2592.9,0.07711874]
[1724068734650,5.40587413,2594.0,2592.8,10.2401]
[1724068734856,5.40587413,2594.0,2592.9,0.62711812]
[1724068734857,1.55082413,2594.0,2592.9,0.62711812]
[1724068735075,0.20255713,2594.0,2593.0,2.492]
[1724068735209,0.20255713,2594.0,2593.1,0.55]
[1724068735409,0.20255713,2594.0,2593.2,2.492]
[1724068735621,6.2073,2594.5,2593.2,5.492]
[1724068735865,0.20255713,2593.9,2593.2,5.492]
[1724068736010,3.85396,2594.8,2593.4,2.492]
[1724068736011,2.3529,2594.8,2593.4,2.492]
[1724068736212,0.20302949,2593.8,2593.6,7.2401]
[1724068736411,3.85448,2594.4,2593.4,5.492]
[1724068736666,0.20302949,2593.7,2593.5,3.0]
[1724068736952,0.20302949,2593.7,2593.4,2.492]
[1724068736953,0.385448,2594.3,2593.4,2.492]
[1724068737155,0.19669466,2593.6,2593.4,2.492]
[1724068737508,3.85431,2594.5,2593.4,2.492]
[1724068738021,0.19669466,2594.4,2593.4,2.492]
[1724068738241,3.85471,2594.3,2593.4,2.492]
[1724068738558,4.05116466,2594.4,2593.3,3.0]
[1724068738559,6.75356047,2594.2,2593.3,3.0]
[1724068738757,3.85537,2593.8,2593.3,3.0]
[1724068738927,7.71033,2594.0,2593.3,3.0]
[1724068739256,4.43765741,2593.9,2593.1,2.3233]
[1724068739460,3.85537,2593.8,2593.1,2.3233]
[1724068739615,0.58238741,2593.9,2593.1,2.3233]
[1724068739810,0.19686685,2593.7,2593.1,2.3233]
[1724068740010,0.44375374,2593.8,2593.1,2.3233]
[1724068740729,0.19681687,2593.7,2593.1,2.3233]
[1724068741054,2.89874047,2594.2,2593.1,2.3233]
[1724068741353,3.85492,2594.1,2593.1,2.3233]
[1724068741573,0.67536605,2594.0,2593.1,2.3233]
[1724068741731,0.87277196,2594.0,2593.1,2.3233]
[1724068742865,0.19740591,2594.0,2593.1,2.3233]
[1724068743528,3.85524,2593.9,2593.1,2.3233]
[1724068743733,4.05246591,2594.0,2593.1,2.3233]
[1724068743930,0.19737814,2593.8,2593.1,2.3233]
[1724068744148,4.25992047,2594.2,2593.1,2.3233]
[1724068744459,0.67535205,2594.1,2593.1,2.3233]
[1724068744667,0.87273019,2594.1,2593.2,6.418]
[1724068744867,0.87273019,2594.1,2593.3,3.0]
[1724068745217,4.72765019,2594.1,2593.3,3.0]
[1724068745461,0.85824302,2594.0,2593.3,3.0]
[1724068745627,0.19737814,2594.1,2593.4,2.4768]
[1724068745962,0.19737814,2594.0,2593.4,2.4768]
[1724068746126,3.85483,2594.2,2593.4,2.4768]
[1724068746334,0.19737814,2594.1,2593.4,2.4768]
[1724068746546,3.8546,2594.3,2593.4,2.4768]
[1724068746783,4.05212814,2594.2,2593.4,2.4768]
[1724068746952,0.40521281,2594.1,2593.4,2.4768]
[1724068747155,3.85408,2594.7,2593.6,8.7956]
[1724068747353,4.05167814,2594.6,2593.7,3.0]
[1724068747666,3.8543,2594.6,2593.7,3.0]
[1724068747872,4.866041,2594.7,2593.7,3.0]
[1724068748071,0.19737814,2594.5,2593.7,3.0]
[1724068748383,0.19737814,2594.4,2594.0,6.418]
[1724068748565,6.26559,2595.2,2594.2,2.3776]
[1724068748566,2.4123,2595.2,2594.2,2.3776]
[1724068748768,2.4123,2595.2,2594.2,9.6177]
[1724068748955,4.05093814,2595.1,2594.3,3.0]
[1724068749157,4.29216814,2595.1,2594.3,3.0]
[1724068749469,3.85409,2594.7,2594.3,3.0]
[1724068749888,0.19771134,2594.6,2593.9,2.3776]
[1724068750193,0.385409,2594.6,2593.9,2.3776]
[1724068750421,0.19771134,2594.5,2593.9,2.3776]
[1724068750708,4.05210134,2594.5,2593.7,3.0]
[1724068750903,0.82917403,2594.4,2593.7,3.0]
[1724068751204,7.70876,2594.5,2593.7,3.0]
[1724068751402,0.19771134,2594.3,2593.7,3.0]
[1724068751603,2.4123,2594.6,2593.7,3.0]
[1724068751758,0.19771134,2594.2,2593.7,3.0]
[1724068751961,4.239651,2594.6,2593.7,3.0]
[1724068752157,0.19771134,2594.5,2593.7,3.0]
[1724068752959,0.19771134,2594.5,2594.0,6.418]
[1724068753160,4.09464,2595.1,2594.2,2.3226]
[1724068753361,3.85379,2594.9,2594.2,2.3226]
[1724068753690,2.4225,2595.0,2594.1,3.0]
[1724068753853,3.85403,2594.7,2593.8,2.4805]
[1724068754259,0.19795017,2594.6,2593.8,2.4805]
[1724068754460,3.85396,2594.8,2593.8,2.4805]
[1724068754761,3.85427,2594.6,2593.8,2.4805]
[1724068755099,3.85438,2594.5,2593.8,2.4805]
[1724068755255,3.85456,2594.4,2593.8,2.4805]
[1724068755459,3.85468,2594.3,2593.7,3.0]
[1724068755658,4.05226426,2594.3,2593.6,7.2401]
[1724068755899,7.90697426,2594.3,2593.5,2.3922]
[1724068756096,4.05226426,2594.3,2593.5,2.3922]
[1724068756309,4.26006643,2594.2,2593.5,2.3922]
[1724068756606,3.85513,2594.0,2593.5,2.3922]
[1724068756771,4.05243653,2594.1,2593.2,13.6581]
[1724068756772,6.50083653,2594.1,2593.2,9.5063]
[1724068756958,0.4457663,2594.0,2593.3,2.2662]
[1724068757164,0.19750653,2593.9,2593.3,2.2662]
[1724068757359,3.85491,2594.1,2593.3,2.2662]
[1724068757360,3.85505,2594.0,2593.3,2.2662]
[1724068757566,0.19750653,2593.9,2593.3,2.2662]
[1724068758358,0.19750653,2593.9,2593.3,5.2662]
[1724068758968,2.4638,2594.4,2593.3,5.2662]
[1724068759269,3.85492,2594.1,2593.3,5.2662]
[1724068759466,0.385492,2594.0,2593.3,5.2662]
[1724068759860,0.385492,2594.0,2593.3,3.0]
[1724068759861,2.64360653,2593.9,2593.3,3.0]
[1724068760067,0.19750653,2593.9,2593.3,3.0]
[1724068762592,3.85498,2594.1,2593.4,2.4811]
[1724068762763,0.19723995,2594.0,2593.4,2.4811]
[1724068762964,3.85453,2594.4,2593.4,2.4811]
[1724068763279,0.8178397,2594.3,2593.4,2.4811]
[1724068763605,7.70975,2594.2,2593.4,2.4811]
[1724068763806,3.8549,2594.1,2593.4,2.4811]
[1724068764007,4.0518567,2594.1,2593.4,2.4811]
[1724068764207,0.1969567,2594.1,2593.4,2.4811]
[1724068764509,3.85447,2594.4,2593.4,2.4811]
[1724068764710,0.1969567,2594.0,2593.4,2.4811]
[1724068764911,3.85447,2594.4,2593.4,2.4811]
[1724068765118,0.1969567,2593.9,2593.4,2.4811]
[1724068765282,3.85469,2594.3,2593.4,2.4811]
[1724068765609,3.85497,2594.1,2593.4,2.4811]
[1724068765815,4.625686,2594.2,2593.4,2.4811]
[1724068765816,3.85508,2594.0,2593.4,2.4811]
[1724068766170,6.20863,2594.5,2593.4,2.4811]
[1724068766171,0.1969567,2593.9,2593.4,2.4811]
[1724068766410,3.85479,2594.2,2593.4,2.4811]
[1724068766634,2.3543,2594.5,2593.4,2.4811]
[1724068766635,0.1969567,2593.8,2593.4,2.4811]
[1724068766792,3.85508,2594.0,2593.4,2.4811]
[1724068766987,0.1969567,2593.7,2593.4,2.4811]
[1724068767202,2.3543,2594.5,2593.5,0.07710648]
[1724068767381,3.85393,2594.8,2593.8,2.322]
[1724068767581,3.85402,2594.7,2593.8,5.322]
[1724068767797,3.85444,2594.5,2593.8,2.322]
[1724068768006,3.85461,2594.3,2593.8,2.322]
[1724068768317,3.85463,2594.3,2593.8,2.322]
[1724068768521,3.8549,2594.1,2593.6,3.0]
[1724068768665,3.8549,2594.1,2593.5,5.4755]
[1724068768867,4.625861,2594.1,2593.5,5.4755]
[1724068769107,3.8549,2594.1,2593.5,5.4755]
[1724068769516,3.8549,2594.1,2593.5,2.4755]
[1724068769695,3.8549,2594.1,2593.2,3.0]
[1724068769696,3.85507,2594.0,2593.2,5.3429]
[1724068769869,3.8549,2594.1,2593.2,5.3429]
[1724068769870,0.770997,2593.9,2593.2,5.3429]
[1724068770211,3.8549,2594.1,2593.2,5.3429]
[1724068770623,3.85505,2594.0,2593.2,5.3429]
[1724068771126,3.85519,2593.9,2593.2,5.3429]
[1724068771280,0.385519,2593.8,2593.2,5.3429]
[1724068771721,3.8549,2594.1,2593.2,5.3429]
[1724068771932,3.85469,2594.3,2593.2,5.3429]
[1724068772220,3.8549,2594.1,2593.2,5.3429]
[1724068772732,3.85481,2594.2,2593.2,5.3429]
[1724068772934,4.2788234,2594.2,2593.2,5.3429]
[1724068773357,0.385444,2594.4,2593.5,2.4412]
[1724068773502,0.385444,2594.4,2593.5,5.4412]
[1724068774095,3.85468,2594.3,2593.5,5.4412]
[1724068774602,3.85475,2594.2,2593.5,5.4412]
[1724068775309,3.85509,2594.0,2593.5,5.4412]
[1724068775491,7.71023,2594.0,2593.5,2.4412]
[1724068775840,0.771023,2594.0,2593.2,2.4829]
[1724068776152,6.11234,2594.0,2593.2,2.4829]
[1724068776333,2.40289677,2594.4,2593.4,4.013]
[1724068776495,0.19696782,2593.9,2593.6,2.2872]
[1724068776693,3.85408,2594.7,2593.7,4.013]
[1724068776956,4.624972,2594.6,2593.7,4.013]
[1724068777237,7.89863346,2594.6,2593.8,3.0]
[1724068777390,4.04437346,2594.6,2593.8,3.0]
[1724068777590,3.8549,2594.1,2593.6,2.2872]
[1724068777824,2.3051,2594.5,2593.6,2.2872]
[1724068777825,3.85478,2594.2,2593.6,2.2872]
[1724068778203,0.19029275,2594.1,2593.6,2.2872]
[1724068778584,0.19029275,2594.1,2593.3,2.3803]
[1724068778712,0.19029275,2594.1,2593.4,4.013]
[1724068778909,2.01745277,2594.7,2593.7,4.013]
[1724068779134,6.34977,2594.8,2593.7,4.013]
[1724068779135,0.19038203,2594.0,2593.8,3.0]
[1724068779459,3.85417,2594.6,2593.8,3.0]
[1724068779591,0.19038203,2593.9,2593.8,3.0]
[1724068779951,3.85432,2594.5,2593.8,3.0]
[1724068780156,0.4489147,2594.5,2593.8,3.0]
[1724068780447,0.19038203,2594.4,2593.8,3.0]
[1724068780991,0.19038203,2594.4,2593.6,2.3803]
[1724068780992,3.8546,2594.3,2593.6,2.3803]
[1724068781343,0.4044982,2594.2,2593.6,2.3803]
[1724068781709,3.85452,2594.4,2593.6,2.3803]
[1724068781914,0.19039319,2594.1,2593.6,2.3803]
[1724068782246,0.19039319,2594.0,2593.6,2.3803]
[1724068782430,4.82726728,2594.3,2593.6,2.3803]
[1724068782629,0.19039319,2593.9,2593.6,2.3803]
[1724068782943,4.82726728,2594.3,2593.6,2.3803]
[1724068783150,0.19039319,2593.8,2593.6,2.3803]
[1724068783457,3.85533,2593.9,2593.3,5.4973]
[1724068783605,3.85534,2593.8,2593.3,2.4973]
[1724068783805,4.626392,2593.8,2593.3,2.4973]
[1724068784019,4.04577043,2593.7,2593.3,2.4973]
[1724068784849,0.19027043,2593.7,2593.3,2.4973]
[1724068785019,3.85521,2593.9,2593.3,2.4973]
[1724068785221,0.19027043,2593.6,2593.3,2.4973]
[1724068785403,3.85521,2593.9,2593.3,2.4973]
[1724068785607,4.82842219,2593.9,2593.3,2.4973]
[1724068785838,4.04564043,2593.8,2593.3,2.4973]
[1724068786205,3.85552,2593.7,2593.3,2.4973]
[1724068786405,3.85563,2593.7,2593.0,2.4268]
[1724068786738,3.85581,2593.5,2593.0,2.4268]
[1724068786923,3.85609,2593.3,2592.6,2.3529]
[1724068787250,0.19003601,2593.2,2592.6,2.3529]
[1724068787454,3.85646,2593.1,2592.6,2.3529]
[1724068787619,4.04649601,2593.1,2592.6,2.3529]
[1724068788312,4.83676461,2593.1,2592.0,2.4664]